fUST/lending_fUST_20250719
["ID","MTS","AMOUNT","RATE_DAILY","PERIOD"]
[373179178,1752892247548,-464.62479289,0.00017534,2]
[373179180,1752892247558,-460.0,0.00017534,2]
[373179182,1752892247567,-460.0,0.00017534,2]
[373179184,1752892247580,-460.0,0.00017534,2]
[373179186,1752892247590,-460.0,0.00017534,2]
[373179188,1752892247600,-541.83976127,0.00017534,2]
[373179190,1752892247610,-467.53394974,0.00017534,2]
[373179192,1752892247619,-460.0,0.00017534,2]
[373179194,1752892247629,-460.0,0.00017534,2]
[373179196,1752892247639,-164.07177307,0.00017534,2]
[373179199,1752892247649,-460.0,0.00017534,2]
[373179201,1752892247659,-460.0,0.00017534,2]
[373179203,1752892247670,-460.0,0.00017534,2]
[373179205,1752892247680,-460.0,0.00017534,2]
[373179207,1752892247690,-460.0,0.00017534,2]
[373179209,1752892247700,-460.0,0.00017534,2]
[373179211,1752892247711,-460.0,0.00017534,2]
[373179212,1752892247721,-460.0,0.00017534,2]
[373179215,1752892247736,-460.0,0.00017534,2]
[373179217,1752892247746,-460.0,0.00017534,2]
[373179219,1752892247756,-476.0910512,0.00017534,2]
[373179221,1752892247766,-460.0,0.00017534,2]
[373179223,1752892247775,-460.0,0.00017534,2]
[373179225,1752892247785,-460.0,0.00017534,2]
[373179227,1752892247797,-460.0,0.00017534,2]
[373179229,1752892247807,-460.0,0.00017534,2]
[373179231,1752892247817,-460.0,0.00017534,2]
[373179233,1752892247826,-460.0,0.00017534,2]
[373179235,1752892247836,-460.0,0.00017534,2]
[373179237,1752892247846,-460.0,0.00017534,2]
[373179239,1752892247856,-460.0,0.00017534,2]
[373179241,1752892247865,-460.0,0.00017534,2]
[373179243,1752892247875,-460.0,0.00017534,2]
[373179245,1752892247885,-460.0,0.00017534,2]
[373179247,1752892247895,-460.0,0.00017534,2]
[373179249,1752892247905,-460.0,0.00017534,2]
[373179252,1752892247915,-460.0,0.00017534,2]
[373179254,1752892247924,-460.0,0.00017534,2]
[373179256,1752892247934,-460.0,0.00017534,2]
[373179257,1752892247944,-460.0,0.00017534,2]
[373179260,1752892247953,-190.00884633,0.00017534,2]
[373179262,1752892247963,-460.0,0.00017534,2]
[373179264,1752892247973,-460.0,0.00017534,2]
[373179266,1752892247986,-578.3,0.00017534,2]
[373179268,1752892247995,-460.0,0.00017534,2]
[373179270,1752892248006,-460.0,0.00017534,2]
[373179272,1752892248015,-460.0,0.00017534,2]
[373179274,1752892248025,-460.0,0.00017534,2]
[373179276,1752892248036,-460.0,0.00017534,2]
[373179278,1752892248046,-460.0,0.00017534,2]
[373179280,1752892248055,-460.0,0.00017534,2]
[373179282,1752892248064,-460.0,0.00017534,2]
[373179284,1752892248074,-460.0,0.00017534,2]
[373179286,1752892248083,-1395.41,0.00017534,2]
[373179288,1752892248093,-460.0,0.00017534,2]
[373179290,1752892248103,-460.0,0.00017534,2]
[373179292,1752892248114,-460.0,0.00017534,2]
[373179294,1752892248124,-460.0,0.00017534,2]
[373179296,1752892248133,-460.0,0.00017534,2]
[373179298,1752892248143,-460.0,0.00017534,2]
[373179300,1752892248152,-778.15,0.00017534,2]
[373179302,1752892248162,-460.0,0.00017534,2]
[373179304,1752892248171,-969.25,0.00017534,2]
[373179306,1752892248181,-589.51,0.00017534,2]
[373179308,1752892248191,-520.83,0.00017534,2]
[373179310,1752892248202,-460.0,0.00017534,2]
[373179312,1752892248211,-460.0,0.00017534,2]
[373179314,1752892248221,-460.0,0.00017534,2]
[373179317,1752892248233,-737.99,0.00017534,2]
[373179319,1752892248243,-415.57290417,0.00017534,2]
[373179321,1752892248252,-460.0,0.00017534,2]
[373179322,1752892248262,-510.74,0.00017534,2]
[373179325,1752892248271,-510.62,0.00017534,2]
[373179327,1752892248281,-831.95,0.00017534,2]
[373179329,1752892248290,-460.0,0.00017534,2]
[373179331,1752892248300,-460.0,0.00017534,2]
[373179333,1752892248310,-460.0,0.00017534,2]
[373179335,1752892248320,-460.0,0.00017534,2]
[373179337,1752892248330,-2429.65,0.00017534,2]
[373179339,1752892248339,-778.59,0.00017534,2]
[373179341,1752892248349,-460.0,0.00017534,2]
[373179343,1752892248359,-460.0,0.00017534,2]
[373179345,1752892248368,-460.0,0.00017534,2]
[373179347,1752892248378,-418.18023803,0.00017534,2]
[373179349,1752892248388,-512.87,0.00017534,2]
[373179351,1752892248398,-225.49467486,0.00017534,2]
[373179353,1752892248407,-460.0,0.00017534,2]
[373179355,1752892248417,-1458.4,0.00017534,2]
[373179357,1752892248427,-460.0,0.00017534,2]
[373179359,1752892248437,-460.0,0.00017534,2]
[373179361,1752892248446,-1590.78,0.000176,2]
[373179363,1752892248456,-500.44944029,0.00017777,2]
[373179366,1752892248466,-313.44797438,0.00017799,2]
[373179368,1752892248475,-2000.0,0.000178,4]
[373179370,1752892248490,-2000.0,0.000178,5]
[373179372,1752892248505,-500.0,0.00017808,2]
[373179374,1752892248514,-500.0,0.00017808,2]
[373179376,1752892248524,-201.6991911,0.00017808,2]
[373179378,1752892248534,-460.0,0.00017808,2]
[373179380,1752892248546,-460.0,0.00017808,2]
[373179382,1752892248557,-460.0,0.00017808,2]
[373179384,1752892248571,-460.0,0.00017808,2]
[373179386,1752892248581,-460.0,0.00017808,2]
[373179388,1752892248591,-460.0,0.00017808,2]
[373179390,1752892248601,-460.0,0.00017808,2]
[373179392,1752892248611,-460.0,0.00017808,2]
[373179394,1752892248621,-460.0,0.00017808,2]
[373179396,1752892248631,-460.0,0.00017808,2]
[373179398,1752892248642,-460.0,0.00017808,2]
[373179400,1752892248652,-460.0,0.00017808,2]
[373179402,1752892248662,-460.0,0.00017808,2]
[373179404,1752892248672,-460.0,0.00017808,2]
[373179407,1752892248681,-460.0,0.00017808,2]
[373179408,1752892248690,-460.0,0.00017808,2]
[373179410,1752892248700,-460.0,0.00017808,2]
[373179412,1752892248710,-460.0,0.00017808,2]
[373179415,1752892248720,-460.0,0.00017808,2]
[373179417,1752892248730,-460.0,0.00017808,2]
[373179419,1752892248740,-460.0,0.00017808,2]
[373179421,1752892248751,-460.0,0.00017808,2]
[373179423,1752892248761,-468.06715672,0.00017808,2]
[373179425,1752892248771,-460.0,0.00017808,2]
[373179427,1752892248781,-460.0,0.00017808,2]
[373179429,1752892248791,-496.61,0.00017808,2]
[373179431,1752892248800,-460.0,0.00017808,2]
[373179433,1752892248810,-460.0,0.00017808,2]
[373179435,1752892248820,-460.0,0.00017808,2]
[373179437,1752892248830,-460.0,0.00017808,2]
[373179439,1752892248840,-460.0,0.00017808,2]
[373179441,1752892248850,-460.0,0.00017808,2]
[373179456,1752892248981,-460.0,0.00017808,2]
[373179458,1752892248991,-460.0,0.00017808,2]
[373179460,1752892249000,-460.0,0.00017808,2]
[373179462,1752892249010,-460.0,0.00017808,2]
[373179464,1752892249020,-460.0,0.00017808,2]
[373179466,1752892249032,-460.0,0.00017808,2]
[373179468,1752892249041,-470.03296021,0.00017808,2]
[373179470,1752892249050,-460.0,0.00017808,2]
[373179472,1752892249059,-460.0,0.00017808,2]
[373179474,1752892249068,-1395.41,0.00017808,2]
[373179476,1752892249078,-189.93,0.00017808,2]
[373179478,1752892249087,-460.0,0.00017808,2]
[373179480,1752892249098,-460.0,0.00017808,2]
[373179482,1752892249107,-460.0,0.00017808,2]
[373179484,1752892249117,-460.0,0.00017808,2]
[373179486,1752892249127,-778.15,0.00017808,2]
[373179488,1752892249136,-460.0,0.00017808,2]
[373179490,1752892249145,-969.25,0.00017808,2]
[373179492,1752892249156,-589.51,0.00017808,2]
[373179494,1752892249165,-520.83,0.00017808,2]
[373179496,1752892249174,-460.0,0.00017808,2]
[373179498,1752892249183,-460.0,0.00017808,2]
[373179500,1752892249193,-460.0,0.00017808,2]
[373179502,1752892249202,-737.99,0.00017808,2]
[373179504,1752892249211,-460.0,0.00017808,2]
[373179506,1752892249221,-510.74,0.00017808,2]
[373179507,1752892249231,-510.62,0.00017808,2]
[373179509,1752892249241,-831.95,0.00017808,2]
[373179511,1752892249251,-460.0,0.00017808,2]
[373179513,1752892249260,-185.58138815,0.00017808,2]
[373179515,1752892249269,-460.0,0.00017808,2]
[373179517,1752892249279,-460.0,0.00017808,2]
[373179519,1752892249288,-2429.65,0.00017808,2]
[373179521,1752892249297,-778.59,0.00017808,2]
[373179524,1752892249307,-460.0,0.00017808,2]
[373179526,1752892249316,-460.0,0.00017808,2]
[373179528,1752892249325,-460.0,0.00017808,2]
[373179530,1752892249335,-512.87,0.00017808,2]
[373179532,1752892249345,-460.0,0.00017808,2]
[373179534,1752892249355,-1458.4,0.00017808,2]
[373179536,1752892249364,-460.0,0.00017808,2]
[373179538,1752892249373,-460.0,0.00017808,2]
[373179540,1752892249383,-1000.0,0.00017809,2]
[373179542,1752892249392,-1000.0,0.00017809,2]
[373179544,1752892249401,-1361.56829776,0.00017831,2]
[373179546,1752892249410,-500.0,0.00017846,2]
[373179548,1752892249419,-988.86730724,0.00017882,2]
[373179550,1752892249428,-204.0,0.00017919,2]
[373179552,1752892249438,-420.0,0.00017919,2]
[373179554,1752892249448,-260.0,0.00017974,2]
[373179556,1752892249457,-182.04499252,0.00018,2]
[373179558,1752892249466,-501.02221371,0.00018012,2]
[373179560,1752892249475,-500.0,0.00018012,2]
[373179562,1752892249493,-500.0,0.00018082,2]
[373179564,1752892249504,-500.0,0.00018082,2]
[373179566,1752892249513,-460.0,0.00018082,2]
[373179568,1752892249522,-460.0,0.00018082,2]
[373179570,1752892249532,-467.41168118,0.00018082,2]
[373179572,1752892249542,-460.0,0.00018082,2]
[373179574,1752892249551,-460.0,0.00018082,2]
[373179576,1752892249561,-460.0,0.00018082,2]
[373179578,1752892249571,-460.0,0.00018082,2]
[373179580,1752892249581,-460.0,0.00018082,2]
[373179582,1752892249591,-460.0,0.00018082,2]
[373179584,1752892249600,-361.77059074,0.00018082,2]
[373179586,1752892249610,-460.0,0.00018082,2]
[373179588,1752892249619,-460.0,0.00018082,2]
[373179590,1752892249628,-460.0,0.00018082,2]
[373179592,1752892249638,-460.0,0.00018082,2]
[373179594,1752892249647,-460.0,0.00018082,2]
[373179596,1752892249657,-460.0,0.00018082,2]
[373179598,1752892249666,-460.0,0.00018082,2]
[373179600,1752892249675,-331.28058231,0.00018082,2]
[373179602,1752892249684,-460.0,0.00018082,2]
[373179604,1752892249694,-460.0,0.00018082,2]
[373179606,1752892249703,-460.0,0.00018082,2]
[373179608,1752892249712,-460.0,0.00018082,2]
[373179610,1752892249722,-460.0,0.00018082,2]
[373179612,1752892249735,-460.0,0.00018082,2]
[373179614,1752892249745,-460.0,0.00018082,2]
[373179616,1752892249754,-460.0,0.00018082,2]
[373179618,1752892249764,-460.0,0.00018082,2]
[373179620,1752892249775,-460.0,0.00018082,2]
[373179622,1752892249784,-460.0,0.00018082,2]
[373179624,1752892249793,-460.0,0.00018082,2]
[373179626,1752892249802,-542.66,0.00018082,2]
[373179628,1752892249812,-460.0,0.00018082,2]
[373179630,1752892249821,-460.0,0.00018082,2]
[373179632,1752892249830,-460.0,0.00018082,2]
[373179634,1752892249840,-460.0,0.00018082,2]
[373179636,1752892249849,-1395.41,0.00018082,2]
[373179638,1752892249858,-460.0,0.00018082,2]
[373179640,1752892249867,-460.0,0.00018082,2]
[373179642,1752892249876,-460.0,0.00018082,2]
[373179644,1752892249885,-239.24188877,0.00018082,2]
[373179646,1752892249893,-778.15,0.00018082,2]
[373179648,1752892249902,-477.85,0.00018082,2]
[373179650,1752892249911,-969.25,0.00018082,2]
[373179652,1752892249920,-589.51,0.00018082,2]
[373179654,1752892249929,-520.83,0.00018082,2]
[373179656,1752892249939,-460.0,0.00018082,2]
[373179658,1752892249947,-460.0,0.00018082,2]
[373179660,1752892249956,-460.0,0.00018082,2]
[373179662,1752892249965,-737.99,0.00018082,2]
[373179664,1752892249974,-460.0,0.00018082,2]
[373179666,1752892249987,-510.74,0.00018082,2]
[373179668,1752892249996,-510.62,0.00018082,2]
[373179670,1752892250005,-831.95,0.00018082,2]
[373179672,1752892250015,-460.0,0.00018082,2]
[373179674,1752892250025,-460.0,0.00018082,2]
[373179676,1752892250034,-460.0,0.00018082,2]
[373179678,1752892250044,-2429.65,0.00018082,2]
[373179680,1752892250054,-778.59,0.00018082,2]
[373179682,1752892250064,-314.28861646,0.00018082,2]
[373179684,1752892250073,-460.0,0.00018082,2]
[373179686,1752892250083,-460.0,0.00018082,2]
[373179688,1752892250092,-512.87,0.00018082,2]
[373179690,1752892250101,-460.0,0.00018082,2]
[373179691,1752892250111,-1458.4,0.00018082,2]
[373179692,1752892250119,-460.0,0.00018082,2]
[373179693,1752892250128,-460.0,0.00018082,2]
[373179694,1752892250137,-888.6442266,0.00018131,2]
[373179695,1752892250147,-1361.56829776,0.00018141,2]
[373179696,1752892250156,-500.0,0.00018356,2]
[373179697,1752892250165,-193.52807795,0.00018356,2]
[373179698,1752892250174,-460.0,0.00018356,2]
[373179699,1752892250184,-460.0,0.00018356,2]
[373179700,1752892250193,-460.0,0.00018356,2]
[373179701,1752892250202,-460.0,0.00018356,2]
[373179702,1752892250211,-460.0,0.00018356,2]
[373179703,1752892250221,-460.0,0.00018356,2]
[373179704,1752892250233,-460.0,0.00018356,2]
[373179705,1752892250241,-460.0,0.00018356,2]
[373179706,1752892250250,-460.0,0.00018356,2]
[373179707,1752892250259,-460.0,0.00018356,2]
[373179708,1752892250268,-460.0,0.00018356,2]
[373179709,1752892250277,-460.0,0.00018356,2]
[373179710,1752892250286,-460.0,0.00018356,2]
[373179711,1752892250295,-460.0,0.00018356,2]
[373179713,1752892250304,-460.0,0.00018356,2]
[373179714,1752892250313,-460.0,0.00018356,2]
[373179715,1752892250322,-487.24,0.00018356,2]
[373179717,1752892250332,-460.0,0.00018356,2]
[373179719,1752892250341,-271.75071418,0.00018356,2]
[373179721,1752892250350,-460.0,0.00018356,2]
[373179723,1752892250359,-161.05573044,0.00018356,2]
[373179725,1752892250368,-460.0,0.00018356,2]
[373179727,1752892250378,-460.0,0.00018356,2]
[373179730,1752892250387,-460.0,0.00018356,2]
[373179732,1752892250396,-476.63075359,0.00018356,2]
[373179734,1752892250406,-181.38,0.00018356,2]
[373179736,1752892250415,-474.64235238,0.00018356,2]
[373179738,1752892250424,-1395.41,0.00018356,2]
[373179740,1752892250433,-460.0,0.00018356,2]
[373179741,1752892250442,-460.0,0.00018356,2]
[373179744,1752892250452,-460.0,0.00018356,2]
[373179746,1752892250461,-778.15,0.00018356,2]
[373179747,1752892250470,-969.25,0.00018356,2]
[373179749,1752892250480,-589.51,0.00018356,2]
[373179751,1752892250493,-520.83,0.00018356,2]
[373179753,1752892250507,-460.0,0.00018356,2]
[373179756,1752892250516,-460.0,0.00018356,2]
[373179757,1752892250526,-460.0,0.00018356,2]
[373179759,1752892250535,-737.99,0.00018356,2]
[373179761,1752892250546,-237.81,0.00018356,2]
[373179763,1752892250555,-510.74,0.00018356,2]
[373179766,1752892250565,-510.62,0.00018356,2]
[373179768,1752892250574,-831.95,0.00018356,2]
[373179770,1752892250584,-460.0,0.00018356,2]
[373179772,1752892250594,-460.0,0.00018356,2]
[373179773,1752892250603,-261.94,0.00018356,2]
[373179776,1752892250613,-2429.65,0.00018356,2]
[373179778,1752892250622,-778.59,0.00018356,2]
[373179780,1752892250631,-460.0,0.00018356,2]
[373179782,1752892250641,-460.0,0.00018356,2]
[373179784,1752892250650,-512.87,0.00018356,2]
[373179786,1752892250658,-460.0,0.00018356,2]
[373179788,1752892250668,-1458.4,0.00018356,2]
[373179790,1752892250677,-460.0,0.00018356,2]
[373179792,1752892250686,-460.0,0.00018356,2]
[373179794,1752892250695,-1500.0,0.00018357,2]
[373179796,1752892250705,-505.7834431,0.00018357,2]
[373179798,1752892250714,-1432.67169152,0.00018408,2]
[373179800,1752892250724,-1361.56829776,0.00018452,2]
[373179802,1752892250735,-360.0,0.00018522,2]
[373179804,1752892250745,-500.0,0.0001863,2]
[373179805,1752892250755,-460.0,0.0001863,2]
[373179807,1752892250764,-460.0,0.0001863,2]
[373179809,1752892250773,-460.0,0.0001863,2]
[373179811,1752892250782,-460.0,0.0001863,2]
[373179813,1752892250792,-460.0,0.0001863,2]
[373179815,1752892250801,-460.0,0.0001863,2]
[373179817,1752892250810,-460.0,0.0001863,2]
[373179819,1752892250820,-460.0,0.0001863,2]
[373179821,1752892250829,-297.03181503,0.0001863,2]
[373179823,1752892250838,-460.0,0.0001863,2]
[373179825,1752892250848,-460.0,0.0001863,2]
[373179827,1752892250857,-460.0,0.0001863,2]
[373179830,1752892250867,-515.52,0.0001863,2]
[373179832,1752892250877,-460.0,0.0001863,2]
[373179834,1752892250887,-460.0,0.0001863,2]
[373179836,1752892250896,-460.0,0.0001863,2]
[373179838,1752892250907,-1395.41,0.0001863,2]
[373179840,1752892250916,-460.0,0.0001863,2]
[373179842,1752892250926,-460.0,0.0001863,2]
[373179844,1752892250935,-460.0,0.0001863,2]
[373179846,1752892250944,-778.15,0.0001863,2]
[373179848,1752892250953,-969.25,0.0001863,2]
[373179850,1752892250962,-589.51,0.0001863,2]
[373179851,1752892250971,-520.83,0.0001863,2]
[373179853,1752892250982,-460.0,0.0001863,2]
[373179856,1752892250992,-460.0,0.0001863,2]
[373179858,1752892251001,-460.0,0.0001863,2]
[373179860,1752892251010,-737.99,0.0001863,2]
[373179862,1752892251020,-510.74,0.0001863,2]
[373179863,1752892251029,-510.62,0.0001863,2]
[373179865,1752892251038,-831.95,0.0001863,2]
[373179867,1752892251048,-460.0,0.0001863,2]
[373179869,1752892251057,-460.0,0.0001863,2]
[373179871,1752892251068,-2429.65,0.0001863,2]
[373179873,1752892251077,-778.59,0.0001863,2]
[373179875,1752892251087,-460.0,0.0001863,2]
[373179878,1752892251097,-555.02,0.0001863,2]
[373179879,1752892251106,-512.87,0.0001863,2]
[373179882,1752892251115,-460.0,0.0001863,2]
[373179883,1752892251124,-1458.4,0.0001863,2]
[373179885,1752892251133,-460.0,0.0001863,2]
[373179887,1752892251144,-460.0,0.0001863,2]
[373179889,1752892251153,-160.0,0.00018723,2]
[373179891,1752892251162,-214.52603969,0.00018723,2]
[373179893,1752892251171,-839.454303,0.00018723,2]
[373179895,1752892251180,-525.83049785,0.00018723,2]
[373179897,1752892251189,-160.0,0.00018723,2]
[373179899,1752892251198,-215.67360783,0.00018723,2]
[373179901,1752892251207,-230.94145789,0.00018723,2]
[373179903,1752892251217,-160.0,0.00018723,2]
[373179905,1752892251226,-476.34170116,0.00018723,2]
[373179907,1752892251238,-160.0,0.00018723,2]
[373179909,1752892251248,-12612.80205064,0.00018723,2]
[373179911,1752892251257,-1361.56829776,0.00018762,2]
[373179913,1752892251267,-500.0,0.00018904,2]
[373179915,1752892251276,-460.0,0.00018904,2]
[373179917,1752892251285,-460.0,0.00018904,2]
[373179919,1752892251294,-418.53398278,0.00018904,2]
[373179921,1752892251304,-609.3,0.00018904,2]
[373179923,1752892251313,-489.80424279,0.00018904,2]
[373179925,1752892251323,-158.66003641,0.00018904,2]
[373179927,1752892251332,-460.0,0.00018904,2]
[373179929,1752892251341,-490.15,0.00018904,2]
[373179931,1752892251350,-460.0,0.00018904,2]
[373179933,1752892251359,-460.0,0.00018904,2]
[373179935,1752892251369,-460.0,0.00018904,2]
[373179937,1752892251378,-460.0,0.00018904,2]
[373179939,1752892251387,-1395.41,0.00018904,2]
[373179941,1752892251397,-460.0,0.00018904,2]
[373179943,1752892251406,-460.0,0.00018904,2]
[373179945,1752892251415,-460.0,0.00018904,2]
[373179947,1752892251425,-778.15,0.00018904,2]
[373179949,1752892251435,-969.25,0.00018904,2]
[373179951,1752892251445,-589.51,0.00018904,2]
[373179953,1752892251454,-520.83,0.00018904,2]
[373179955,1752892251463,-460.0,0.00018904,2]
[373179957,1752892251472,-460.0,0.00018904,2]
[373179959,1752892251483,-460.0,0.00018904,2]
[373179961,1752892251492,-737.99,0.00018904,2]
[373179963,1752892251506,-510.74,0.00018904,2]
[373179965,1752892251515,-510.62,0.00018904,2]
[373179967,1752892251524,-831.95,0.00018904,2]
[373179969,1752892251533,-460.0,0.00018904,2]
[373179971,1752892251544,-460.0,0.00018904,2]
[373179973,1752892251553,-2429.65,0.00018904,2]
[373179975,1752892251562,-778.59,0.00018904,2]
[373179977,1752892251573,-460.0,0.00018904,2]
[373179979,1752892251583,-512.87,0.00018904,2]
[373179981,1752892251593,-460.0,0.00018904,2]
[373179983,1752892251602,-1458.4,0.00018904,2]
[373179985,1752892251612,-460.0,0.00018904,2]
[373179987,1752892251621,-460.0,0.00018904,2]
[373179989,1752892251630,-683.41532937,0.00018905,2]
[373179991,1752892251640,-460.0,0.0001907,2]
[373179993,1752892251649,-1361.56829776,0.00019072,2]
[373179995,1752892251658,-500.0,0.00019178,2]
[373179997,1752892251668,-460.0,0.00019178,2]
[373179999,1752892251677,-460.0,0.00019178,2]
[373180001,1752892251687,-460.0,0.00019178,2]
[373180003,1752892251697,-567.88014358,0.00019178,2]
[373180005,1752892251706,-460.0,0.00019178,2]
[373180007,1752892251715,-460.0,0.00019178,2]
[373180009,1752892251724,-1395.41,0.00019178,2]
[373180011,1752892251735,-460.0,0.00019178,2]
[373180013,1752892251744,-460.0,0.00019178,2]
[373180015,1752892251754,-460.0,0.00019178,2]
[373180017,1752892251763,-778.15,0.00019178,2]
[373180019,1752892251772,-969.25,0.00019178,2]
[373180021,1752892251782,-589.51,0.00019178,2]
[373180023,1752892251791,-520.83,0.00019178,2]
[373180026,1752892251800,-460.0,0.00019178,2]
[373180027,1752892251810,-460.0,0.00019178,2]
[373180029,1752892251819,-460.0,0.00019178,2]
[373180031,1752892251829,-737.99,0.00019178,2]
[373180033,1752892251839,-510.74,0.00019178,2]
[373180035,1752892251848,-510.62,0.00019178,2]
[373180037,1752892251857,-831.95,0.00019178,2]
[373180040,1752892251868,-460.0,0.00019178,2]
[373180042,1752892251877,-460.0,0.00019178,2]
[373180044,1752892251887,-2429.65,0.00019178,2]
[373180046,1752892251896,-778.59,0.00019178,2]
[373180048,1752892251906,-460.0,0.00019178,2]
[373180050,1752892251915,-512.87,0.00019178,2]
[373180051,1752892251924,-460.0,0.00019178,2]
[373180053,1752892251933,-1458.4,0.00019178,2]
[373180055,1752892251942,-460.0,0.00019178,2]
[373180057,1752892251952,-171.15023,0.00019178,2]
[373180059,1752892251961,-600.0,0.00019186,2]
[373180061,1752892251971,-402.871519,0.00019213,2]
[373180063,1752892251980,-500.0,0.00019218,2]
[373180065,1752892251990,-1361.56829776,0.00019383,2]
[373180068,1752892252000,-500.0,0.00019452,2]
[373180069,1752892252009,-535.41929037,0.00019452,2]
[373180071,1752892252019,-460.0,0.00019452,2]
[373180073,1752892252028,-430.07,0.00019452,2]
[373180075,1752892252037,-460.0,0.00019452,2]
[373180077,1752892252047,-460.0,0.00019452,2]
[373180079,1752892252058,-1395.41,0.00019452,2]
[373180082,1752892252069,-460.0,0.00019452,2]
[373180083,1752892252078,-460.0,0.00019452,2]
[373180085,1752892252086,-460.0,0.00019452,2]
[373180101,1752892252221,-778.15,0.00019452,2]
[373180103,1752892252231,-969.25,0.00019452,2]
[373180105,1752892252241,-589.51,0.00019452,2]
[373180107,1752892252250,-520.83,0.00019452,2]
[373180109,1752892252260,-460.0,0.00019452,2]
[373180111,1752892252270,-460.0,0.00019452,2]
[373180113,1752892252279,-223.53464819,0.00019452,2]
[373180115,1752892252288,-737.99,0.00019452,2]
[373180117,1752892252298,-510.74,0.00019452,2]
[373180119,1752892252307,-510.62,0.00019452,2]
[373180121,1752892252317,-831.95,0.00019452,2]
[373180123,1752892252327,-460.0,0.00019452,2]
[373180125,1752892252336,-460.0,0.00019452,2]
[373180127,1752892252346,-2429.65,0.00019452,2]
[373180129,1752892252355,-778.59,0.00019452,2]
[373180131,1752892252365,-460.0,0.00019452,2]
[373180133,1752892252374,-512.87,0.00019452,2]
[373180135,1752892252383,-290.31483567,0.00019452,2]
[373180137,1752892252393,-1458.4,0.00019452,2]
[373180139,1752892252402,-587.0,0.00019584,2]
[373180141,1752892252411,-560.0,0.00019618,2]
[373180143,1752892252421,-1361.56829776,0.00019693,2]
[373180145,1752892252430,-500.0,0.00019726,2]
[373180147,1752892252439,-460.0,0.00019726,2]
[373180149,1752892252449,-460.0,0.00019726,2]
[373180151,1752892252458,-548.75999983,0.00019726,2]
[373180153,1752892252468,-1395.41,0.00019726,2]
[373180155,1752892252477,-460.0,0.00019726,2]
[373180157,1752892252487,-460.0,0.00019726,2]
[373180159,1752892252499,-460.0,0.00019726,2]
[373180161,1752892252508,-778.15,0.00019726,2]
[373180163,1752892252518,-969.25,0.00019726,2]
[373180165,1752892252527,-589.51,0.00019726,2]
[373180167,1752892252536,-520.83,0.00019726,2]
[373180169,1752892252546,-460.0,0.00019726,2]
[373180171,1752892252555,-460.0,0.00019726,2]
[373180173,1752892252564,-737.99,0.00019726,2]
[373180175,1752892252574,-510.74,0.00019726,2]
[373180177,1752892252583,-510.62,0.00019726,2]
[373180179,1752892252592,-831.95,0.00019726,2]
[373180181,1752892252601,-460.0,0.00019726,2]
[373180183,1752892252611,-254.70868515,0.00019726,2]
[373180185,1752892252620,-2429.65,0.00019726,2]